{"text_format":"1","workbook":"xlsx","n_sheets":2,"sheets":["Beregning av tilskudd","Oppsummeringstabell"],"not_rendered":{"charts":0,"images":1,"macros":1,"external_links":0,"defined_names":0,"comments":0,"pivot_tables":0},"unopened":[],"bounds":{"document_bytes":16777216,"sheet_cells":100000,"rows_first":2000,"rows_last":500,"rows_between":2000,"halvings":0,"cell_chars":16384,"cell_head_chars":4096},"cells_cut":0,"cells_raw":0,"read":"whole","date_system":"1900"}

{"sheet":"Beregning av tilskudd","index":0,"n_rows":83,"n_cols":8,"rows_kept":83,"cut":false,"hidden":false,"merged":[[1,0,1,7],[5,0,5,7],[3,0,3,16383],[0,0,0,7],[76,0,76,5],[75,0,75,5],[72,0,72,1],[2,0,2,7],[20,2,20,3],[26,0,26,7],[24,0,24,7],[73,0,73,1],[49,2,49,3],[49,5,49,6],[12,0,15,0],[53,5,53,6],[84,0,84,1],[84,3,84,4],[82,0,82,4],[77,0,77,5],[79,3,79,4],[78,0,78,5],[79,0,79,1],[81,0,81,1],[53,2,53,3],[61,5,61,6],[80,0,80,1],[4,0,4,7],[45,0,45,7],[21,2,21,3],[11,2,11,3],[12,1,15,1],[27,0,27,7],[42,1,42,6],[12,2,12,3],[13,2,13,3],[14,2,14,3],[10,0,10,7],[25,0,25,7],[28,2,28,3],[28,5,28,6],[7,0,7,7],[8,0,8,7],[9,0,9,7],[15,2,15,3],[16,2,16,3],[17,2,17,3],[18,2,18,3],[19,2,19,3],[54,0,54,6],[6,0,6,7],[23,0,23,7],[44,0,44,7],[69,0,69,4],[59,0,59,7],[60,0,60,7],[66,0,66,6],[68,0,68,4],[67,0,67,7],[11,5,11,6],[46,0,46,7],[47,0,47,7],[48,0,48,7],[43,0,43,6],[22,0,22,6],[74,0,74,4],[83,0,83,5],[56,0,56,7],[57,0,57,7],[61,2,61,3],[58,0,58,7],[70,0,70,4],[71,0,71,4],[72,2,72,3]]}
[]
["Tilskuddskalkulator (Versjon 21. 04. 2017)"]
["Vet du hvor mye din kommune får i tilskudd fra IMDi? Denne kalkulatoren hjelper deg å beregne tilskuddene knyttet til flyktninger og innvandrere for 2017. "]
[]
["For å bruke kalkulatoren, trykk først på knappen \"Aktiver innhold\" helt øverst, så vil det komme opp en dialogboks, trykk deretter på \"Ja\". Dette er for å aktivere Makroer. Gå til de aktuelle tilskuddsordninger for å se hvilke satser som gjelder i år og sett inn antall personer som utløser de ulike satsene ved å trykke på de grå knappene. Kalkulatoren legger inn antallene i tabellen og summerer tilskuddsbeløp for hver ordning. For å se totalt tilskuddsbeløp for ordningene samlet, trykk \"Gå til oppsummeringstabellen\" nederst. Du kan nullstille beløp og antall i en bestemt tabell ved å trykke på \"Nullstill denne tabellen\" ved siden av i tabellen, eller i hele arket alt ved å trykke på nullstillknappen nederst på arket. For å estimere deling av tilskudd mellom kommuner er det også mulig å legge inn desimaltall, husk å bruke komma om du vil legge inn desimaltall. Delingsnøkler finnes i de respektive rundskrivene."]
["Har du spørsmål til IMDi? Send e-post til csh@imdi.no. "]
[]
["Integreringstilskudd, eldretilskudd og barnehagetilskudd"]
["Ordningen gjelder i all hovedsak flyktninger og deres familiegjenforente som ble bosatt i perioden 2013-2017. Det er forskjellige satser som gjelder avhengig av hvilket år personene ble bosatt for første gang, og hvilken kategori de tilhører. "]
["Les mer om ordningen på imdi.no."]
[]
["Tilskuddsår"," Bosettingsår","Kategori",null,"Sats","Antall personer i kommunen",null,"Tilskuddsbeløp"]
["Integreringstilskudd år 1",2017,"enslige voksne",null,235000,null,null,{"$f":"E13*G13","v":0}]
[null,null,"voksne",null,185000,null,null,{"$f":"E14*G14","v":0}]
[null,null,"enslige mindreårige",null,185000,null,null,0]
[null,null,"barn",null,185000,null,null,0]
["Integreringstilskudd år 2 ",2016,"alle flyktninger",null,230000,null,null,0]
["Integreringstilskudd år 3 ",2015,"alle flyktninger",null,167000,null,null,0]
["Integreringstilskudd år 4 ",2014,"alle flyktninger",null,84000,null,null,0]
["Integreringstilskudd år 5 ",2013,"alle flyktninger",null,70500,null,null,0]
["Barnehagetilskudd ",2017,"barn under 5 år",null,25100,null,null,0]
["Eldretilskudd ",2017,"voksne over 60 år",null,164200,null,null,0]
["Totalt",null,null,null,null,null,null,{"$f":"SUM(H13:H22)","v":0}]
[]
["Særskilt tilskudd for bosetting av enslige mindreårige flyktninger"]
["Enslige mindreårige (EM) er en fellesbetegnelse for alle barn og unge under 18 år som kommer til landet uten foreldre eller andre voksne med foreldreansvar i Norge. Det er forskjellige satser som gjelder avhengig av barnets alder og bosettingstidspunkt. Tilskuddet utbetales til og med året den enslige mindreårige fyller 20 år."]
["Les mer om ordningen på imdi.no."]
[]
["Bosettingstidspunkt","Lav sats","Antall personer i kommunen",null,"Høy sats","Antall personer i kommunen",null,"Tilskuddsbeløp"]
["Før 2017",750000,null,null,1198000,null,null,{"$f":"B30*D30+E30*G30","v":0}]
["Januar 2017",750000,null,null,1198000,null,null,{"$f":"B31*D31+E31*G31","v":0}]
["Februar 2017",687500,null,null,1098167,null,null,0]
["Mars 2017",625000,null,null,998333,null,null,0]
["April 2017",562500,null,null,898500,null,null,0]
["Mai 2017",500000,null,null,798667,null,null,0]
["Juni 2017",437500,null,null,698833,null,null,0]
["Juli 2017",375000,null,null,599000,null,null,0]
["August 2017",312500,null,null,499167,null,null,0]
["September 2017",250000,null,null,399333,null,null,0]
["Oktober 2017",187500,null,null,299500,null,null,0]
["November 2017",125000,null,null,199667,null,null,0]
["Desember 2017",62500,null,null,99833,null,null,0]
["Ekstratilskudd 2017 ","100 000 per person bosatt i 2017, uavhengig av bosettingstidspunkt",null,null,null,null,null,{"$f":"100000*(SUM(D31:D42)+SUM(G31:G42))","v":0}]
["Totalt",null,null,null,null,null,null,{"$f":"SUM(H30:H43)","v":0}]
[]
["Tilskudd til opplæring i norsk og samfunnskunnskap for voksne innvandrere"]
["Kommunen mottar dette tilskuddet for voksne innvandrere som bor i kommunen og som har rett og plikt til opplæring i norsk og samfunnskunnskap etter introduksjonsloven. Tilskuddet utbetales per person i målgruppen (persontilskudd), som regel over tre år. Kommunene som har 150 personer eller færre i målgruppen, får også et grunntilskudd."]
["Les mer om ordningen på imdi.no."]
[]
["Tilskudd*","Lav sats","Antall personer i kommunen med lav sats",null,"Høy sats","Antall personer i kommunen med høy sats",null,"Tilskuddsbeløp"]
["Persontilskudd år 1 (2017)",13600,null,null,31900,null,null,{"$f":"B51*D51+E51*G51","v":0}]
["Persontilskudd år 2 (2016)",23300,null,null,60100,null,null,{"$f":"B52*D52+E52*G52","v":0}]
["Persontilskudd år 3 (2015)",13900,null,null,41600,null,null,0]
["Grunntilskudd for 2017",185000,"kommuner med 1-3 personer i målgruppen",null,575000,"kommuner med 4-150 personer i målgruppen",null,{"$f":"IF(AND(H56>=1,H56<=3),B54,IF(AND(H56>=4,H56<=150),E54,0))","v":0}]
["Totalt",null,null,null,null,null,null,{"$f":"SUM(H51:H54)","v":0}]
["*I kolonnen ‘tilskudd’ indikerer årstallene i parentes det året som personene som utløser persontilskuddet kom inn i målgruppen.",null,null,null,null,null,null,{"$f":"SUM(D51:D53)+SUM(G51:G53)","v":0}]
[]
["Tilskudd for bosetting av personer med nedsatt funksjonsevne og/eller atferdsvansker"]
["Kommunen mottar dette tilskuddet ved bosetting av flyktninger med alvorlige, kjente funksjonshemminger og/eller atferdsvansker.Tilskuddsordningen skal dekke ekstraordinære kommunale utgifter som følger av bosetting av flyktninger med nedsatt fysisk og/eller psykisk funksjonsevne; samt personer med voldelig adferd og rusproblemer eller alvorlige atferdsproblemer. Satsen avhenger av når vedkommende er bosatt. Ordningen består av to typer tilskudd: Tilskudd 1 og Tilskudd 2. Tilskudd 1 er et engangstilskudd og kan tildeles i enten første eller andre bosettingsår. Tilskudd 2 kan tildeles årlig i integreringstilskuddsperioden, det vil si i maksimalt 5 år. "]
["Les mer om ordningen på imdi.no."]
[]
["Bosettingstidspunkt","Tilskudd 1","Antall personer med tilskudd 1",null,"Tilskudd 2 (maks. sats)","Stipulert inntekt for tilskudd 2",null,"Tilskuddsbeløp T1 +T2"]
[2017,186000,null,null,1157000,null,null,{"$f":"B63*D63+G63","v":0}]
[2016,181000,null,null,1111000,null,null,{"$f":"B64*D64+G64","v":0}]
[2015,175900,null,null,1080000,null,null,0]
[2014,170500,null,null,852900,null,null,0]
["Totalt",null,null,null,null,null,null,{"$f":"SUM(H63:H66)","v":0}]
[]
["Ekstratilskudd ved bosetting av flyktninger 2017"]
["Kommuner som innen 30. september 2017 bosetter flere flyktninger enn det antallet IMDi anmodet om i 2015, vil motta ekstratilskudd på 50 000 kroner per person. "]
["Les mer om ordningen på imdi.no."]
[]
["Sats",null,"Antall personer som utløser tilskudd",null,"Tilskuddsbeløp"]
[50000,null,null,null,{"$f":"A74*D74","v":0}]
[]
["Tilskudd til opplæring i norsk, norsk kultur og norske verdier for asylsøkere"]
["Kommuner som tilbyr opplæring i norsk og/eller norsk kultur og norske verdier får tilskudd fra IMDi. Tilskuddene utbetales per person som er i målgruppa for ordningene."]
["Les mer om ordningen på imdi.no."]
[]
["Kategori",null,"Sats","Antall personer i målgruppen",null,"Tilskuddsbeløp"]
["Opplæring i norsk for asysøkere",null,13000,null,null,{"$f":"C81*E81","v":0}]
["Opplæring i norsk kultur og norske verdier",null,3700,null,null,{"$f":"C82*E82","v":0}]
["Totalt",null,null,null,null,{"$f":"SUM(F81:F82)","v":0}]

{"sheet":"Oppsummeringstabell","index":1,"n_rows":22,"n_cols":4,"rows_kept":22,"cut":false,"hidden":false,"merged":[]}
[]
[null,null,"Oppsummeringstabell"]
[null,null,"Denne tabellen oppsummerer sum av beregnet tilskudd til kommunen i 2017."]
[null,null,"Les mer om IMDis tilskuddsordninger på imdi.no."]
[]
[null,null,"Tilskuddsordning","Tilskuddsbeløp"]
[null,null,"Integreringstilskudd ",{"$f":"'Beregning av tilskudd'!H23","v":0}]
[null,null,"Særskilt tilskudd for bosetting av enslige mindreårige flyktninger",{"$f":"'Beregning av tilskudd'!H44","v":0}]
[null,null,"Tilskudd til opplæring i norsk og samfunnskunnskap for voksne innvandrere",{"$f":"'Beregning av tilskudd'!H55","v":0}]
[null,null,"Tilskudd for bosetting av personer med nedsatt funksjonsevne og/eller atferdsvansker",{"$f":"'Beregning av tilskudd'!H67","v":0}]
[null,null,"Ekstratilskudd ved bosetting av flyktninger 2017",{"$f":"'Beregning av tilskudd'!E74","v":0}]
[null,null,"Tilskudd til opplæring i norsk, norsk kultur og norske verdier for asylsøkere",{"$f":"'Beregning av tilskudd'!F83","v":0}]
[null,null,"Totalt",{"$f":"SUM(D7:D12)","v":0}]
[]
[]
[]
[]
[null,null,"Gi oss tilbakemelding! "]
[]
[null,null,"IMDi vil gjerne forbedre tilskuddskalkulatoren, og vi vil høre om det er noe du savner av innhold eller funksjonalitet, hvor enkelt eller vanskelig det er å finne tall du trenger, eller om du har andre innspill til oss. \n"]
[]
[null,null,"Send e-post til csh@imdi.no."]